lending/lending_fUSD_20240512
["ID","MTS","AMOUNT","RATE_DAILY","PERIOD"]
[326905161,1715553048643,-2864.46,0.00012328,2]
[326905162,1715553048653,-5555.05,0.00012328,2]
[326905163,1715553048662,-2864.46,0.00012328,2]
[326905164,1715553048671,-5555.05,0.00012328,2]
[326905165,1715553048681,-5555.05,0.00012328,2]
[326905166,1715553048690,-2864.46,0.00012328,2]
[326905167,1715553048700,-2864.46,0.00012328,2]
[326905168,1715553048711,-2864.46,0.00012328,2]
[326905169,1715553048721,-5555.05,0.00012328,2]
[326905170,1715553048730,-2864.46,0.00012328,2]
[326905171,1715553048739,-2864.46,0.00012328,2]
[326905172,1715553048750,-5555.05,0.00012328,2]
[326905173,1715553048759,-2864.46,0.00012328,2]
[326905174,1715553048768,-5555.05,0.00012328,2]
[326905175,1715553048778,-2864.46,0.00012328,2]
[326905176,1715553048788,-5555.05,0.00012328,2]
[326905177,1715553048798,-5555.05,0.00012328,2]
[326905178,1715553048808,-2864.46,0.00012328,2]
[326905179,1715553048817,-5555.05,0.00012328,2]
[326905180,1715553048826,-2864.46,0.00012328,2]
[326905181,1715553048836,-5555.05,0.00012328,2]
[326905182,1715553048846,-2864.46,0.00012328,2]
[326905183,1715553048855,-5555.05,0.00012328,2]
[326905184,1715553048864,-2864.46,0.00012328,2]
[326905185,1715553048874,-5555.05,0.00012328,2]
[326905186,1715553048883,-2864.46,0.00012328,2]
[326905187,1715553048891,-2864.46,0.00012328,2]
[326905188,1715553048900,-1337.6875575,0.00012328,2]
[326905189,1715553048915,-4217.3624425,0.00012328,2]
[326905190,1715553048924,-500.0,0.00012328,2]
[326905191,1715553048933,-2864.46,0.00012328,2]
[326905192,1715553048942,-500.0,0.00012328,2]
[326905193,1715553048951,-5555.05,0.00012328,2]
[326905194,1715553048960,-2864.46,0.00012328,2]
[326905195,1715553048969,-5555.05,0.00012328,2]
[326905196,1715553048978,-500.0,0.00012328,2]
[326905197,1715553048987,-500.0,0.00012328,2]
[326905198,1715553048996,-5555.05,0.00012328,2]
[326905199,1715553049005,-2864.46,0.00012328,2]
[326905200,1715553049014,-1528.04,0.00012328,2]
[326905201,1715553049023,-5555.05,0.00012328,2]
[326905202,1715553049031,-2864.46,0.00012328,2]
[326905203,1715553049040,-1528.04,0.00012328,2]
[326905204,1715553049049,-5555.05,0.00012328,2]
[326905205,1715553049058,-500.0,0.00012328,2]
[326905206,1715553049067,-2864.52660398,0.00012328,2]
[326905207,1715553049075,-1528.04,0.00012328,2]
[326905208,1715553049084,-5555.05,0.00012328,2]
[326905209,1715553049093,-500.0,0.00012328,2]
[326905210,1715553049102,-1699.77,0.00012328,2]
[326905211,1715553049111,-1528.04,0.00012328,2]
[326905212,1715553049119,-5555.05,0.00012328,2]
[326905213,1715553049128,-500.0,0.00012328,2]
[326905214,1715553049137,-1699.77,0.00012328,2]
[326905215,1715553049146,-1528.04,0.00012328,2]
[326905216,1715553049154,-5555.05,0.00012328,2]
[326905217,1715553049163,-500.0,0.00012328,2]
[326905218,1715553049172,-1699.77,0.00012328,2]
[326905219,1715553049284,-1528.04,0.00012328,2]
[326905220,1715553049294,-5555.05,0.00012328,2]
[326905221,1715553049303,-500.0,0.00012328,2]
[326905222,1715553049312,-1699.77,0.00012328,2]
[326905223,1715553049322,-500.0,0.00012328,2]
[326905224,1715553049331,-5555.18988356,0.00012328,2]
[326905225,1715553049340,-1699.77,0.00012328,2]
[326905226,1715553049350,-1528.04,0.00012328,2]
[326905227,1715553049360,-224.56093341,0.00012328,2]
[326905228,1715553049370,-1528.04,0.00012328,2]
[326905229,1715553049380,-1528.04,0.00012328,2]
[326905230,1715553049391,-1699.77,0.00012328,2]
[326905231,1715553049401,-1528.04,0.00012328,2]
[326905232,1715553049411,-1699.77,0.00012328,2]
[326905233,1715553049421,-1528.04,0.00012328,2]
[326905234,1715553049431,-1699.77,0.00012328,2]
[326905235,1715553049441,-1528.04,0.00012328,2]
[326905236,1715553049450,-1699.77,0.00012328,2]
[326905237,1715553049460,-1699.77,0.00012328,2]
[326905238,1715553049470,-973.5641776,0.00012328,2]
[326905239,1715553049488,-726.2058224,0.00012328,2]
[326905240,1715553049498,-1528.04,0.00012328,2]
[326905241,1715553049507,-1699.77,0.00012328,2]
[326905242,1715553049517,-1528.04,0.00012328,2]
[326905243,1715553049526,-1699.77,0.00012328,2]
[326905244,1715553049535,-1528.04,0.00012328,2]
[326905245,1715553049544,-1699.77,0.00012328,2]
[326905246,1715553049554,-1528.04,0.00012328,2]
[326905247,1715553049563,-1699.77,0.00012328,2]
[326905248,1715553049573,-1528.04,0.00012328,2]
[326905249,1715553049583,-1528.04,0.00012328,2]
[326905250,1715553049593,-1699.77,0.00012328,2]
[326905251,1715553049603,-1528.04,0.00012328,2]
[326905252,1715553049613,-1699.77,0.00012328,2]
[326905253,1715553049625,-1528.04,0.00012328,2]
[326905254,1715553049634,-1699.77,0.00012328,2]
[326905255,1715553049644,-1528.04,0.00012328,2]
[326905256,1715553049653,-1699.77,0.00012328,2]
[326905257,1715553049662,-1528.04,0.00012328,2]
[326905258,1715553049671,-1699.77,0.00012328,2]
[326905259,1715553049681,-1528.04,0.00012328,2]
[326905260,1715553049690,-1699.77,0.00012328,2]
[326905261,1715553049702,-1528.25721177,0.00012328,2]
[326905262,1715553049711,-1699.77,0.00012328,2]
[326905263,1715553049720,-1699.77,0.00012328,2]
[326905264,1715553049730,-2922.92,0.00012328,2]
[326905265,1715553049741,-1699.79573504,0.00012328,2]
[326905266,1715553049750,-2922.92,0.00012328,2]
[326905267,1715553049760,-2922.92,0.00012328,2]
[326905268,1715553049770,-2922.92,0.00012328,2]
[326905269,1715553049779,-2922.92,0.00012328,2]
[326905270,1715553049791,-2922.92,0.00012328,2]
[326905271,1715553049801,-2922.92,0.00012328,2]
[326905272,1715553049811,-2922.92,0.00012328,2]
[326905273,1715553049822,-2922.92,0.00012328,2]
[326905274,1715553049832,-2117.43212795,0.00012328,2]
[326905275,1715553049848,-351.94684962,0.00012328,2]
[326905276,1715553049867,-453.54102243,0.00012328,2]
[326905277,1715553049876,-1933.32785644,0.00012328,2]
[326905307,1715553124806,651.24932317,9.862e-05,2]
[326905320,1715553204626,299.999999,0.00025,120]
[326905350,1715554015759,-533.84746218,0.00010692,2]
[326905351,1715554015784,-155.0,0.00010692,2]
[326905354,1715554057632,338.47,0.0001065,2]
[326905431,1715554164283,1455.5,0.00010637,2]
[326905469,1715554232073,-162.48665574,0.00010693,2]
[326905470,1715554232083,-853.78668083,0.00010694,2]
[326905471,1715554232096,-833.80448237,0.00010694,2]
[326905472,1715554232108,-1370.97710886,0.00010694,2]
[326905474,1715554232118,-256.25988128,0.00010695,2]
[326905475,1715554232129,-376.2556118,0.00010695,2]
[326905476,1715554232141,-854.16488114,0.00010695,2]
[326905477,1715554232153,-464.47486671,0.00010695,2]
[326905478,1715554232165,-1132.38722525,0.00010695,2]
[326905479,1715554232177,-389.14753382,0.00010695,2]
[326905480,1715554232187,-520.0,0.00010723,2]
[326905481,1715554232196,-250.0,0.00010755,2]
[326905482,1715554232206,-1131.93808999,0.00010851,2]
[326905483,1715554232218,-419.67248778,0.00010851,2]
[326905484,1715554232230,-4503.556761,0.00010851,2]
[326905485,1715554232243,-1229.285,0.00010851,2]
[326905486,1715554232254,-304.34121688,0.00010851,2]
[326905487,1715554232267,-293.39062286,0.00010851,2]
[326905488,1715554232279,-482.676245,0.00010851,2]
[326905489,1715554232291,-1381.95190557,0.00010851,2]
[326905490,1715554232335,-572.38767092,0.00010851,2]
[326905491,1715554232344,-226.35,0.000109,2]
[326905492,1715554232354,-480.0,0.000109,2]
[326905493,1715554232364,-150.0,0.00010904,2]
[326905494,1715554232373,-499.99,0.00010904,2]
[326905495,1715554232383,-1000.0,0.00010999,2]
[326905496,1715554232393,-135.87897477,0.00010999,2]
[326905497,1715554232405,-1878.87348472,0.00010999,2]
[326905499,1715554232414,-161192.31490926,0.00011,2]
[326905501,1715554232426,-2373.05450546,0.00011,2]
[326905503,1715554232438,-1966.22875406,0.00011,2]
[326905505,1715554232449,-7549.84155807,0.00011,2]
[326905507,1715554232461,-1641.7,0.00011,2]
[326905510,1715554232473,-308.68743525,0.00011,2]
[326905512,1715554232485,-457.41762964,0.00011,2]
[326905514,1715554232505,-920.5160698,0.00011,2]
[326905517,1715554232516,-813.06510203,0.00011,2]
[326905519,1715554232531,-5479.2679418,0.00011,2]
[326905522,1715554232546,-925.09135434,0.00011,2]
[326905524,1715554232558,-160909.57095526,0.00011,2]
[326905526,1715554232568,-152.71,0.00011324,2]
[326905528,1715554232581,-152.71,0.00011331,2]
[326905530,1715554232591,-169.44,0.00011338,2]
[326905532,1715554232601,-152.71,0.00011338,2]
[326905534,1715554232611,-152.71,0.00011345,2]
[326905536,1715554232620,-152.71,0.00011353,2]
[326905538,1715554232630,-152.71,0.0001136,2]
[326905540,1715554232639,-152.71,0.00011367,2]
[326905542,1715554232649,-152.71,0.00011374,2]
[326905544,1715554232659,-152.71,0.00011381,2]
[326905546,1715554232670,-10000.0,0.00011698,2]
[326905548,1715554232679,-173.02267464,0.00011881,2]
[326905550,1715554232689,-338.47,0.00011981,2]
[326905551,1715554232699,-19618.93418788,0.00012,2]
[326905552,1715554232709,-454.89,0.00012027,2]
[326905553,1715554232718,-168.99,0.00012033,2]
[326905554,1715554232728,-520.0,0.00012063,2]
[326905555,1715554232741,-2884.34,0.00012087,2]
[326905556,1715554232751,-10753.87,0.00012087,2]
[326905557,1715554232760,-941.37,0.00012087,2]
[326905558,1715554232769,-2259.9,0.00012087,2]
[326905559,1715554232779,-3000.0,0.000122,2]
[326905560,1715554232789,-153.35911803,0.00012204,2]
[326905561,1715554232799,-1000.0,0.00012228,2]
[326905562,1715554232808,-10000.0,0.00012228,2]
[326905563,1715554232818,-7500.0,0.00012228,2]
[326905564,1715554232828,-21654.16790549,0.00012228,2]
[326905565,1715554232838,-206.82894028,0.00012228,2]
[326905566,1715554232848,-200.0,0.00012229,2]
[326905567,1715554232857,-1000.0,0.00012229,2]
[326905568,1715554232867,-200.0,0.00012229,2]
[326905569,1715554232877,-226.35,0.00012263,2]
[326905570,1715554232887,-480.0,0.00012263,2]
[326905571,1715554232897,-21654.16790547,0.00012287,2]
[326905572,1715554232906,-2225.74124153,0.000123,2]
[326905573,1715554232916,-973.0,0.00012314,2]
[326905574,1715554232927,-1398.0,0.00012314,2]
[326905575,1715554232936,-2299.0,0.00012314,2]
[326905576,1715554232946,-1789.0,0.00012314,2]
[326905577,1715554232956,-543.0,0.00012314,2]
[326905578,1715554232966,-1225.0,0.00012314,2]
[326905579,1715554232976,-1261.0,0.00012314,2]
[326905580,1715554232986,-438.0,0.00012314,2]
[326905581,1715554232995,-422.0,0.00012314,2]
[326905582,1715554233004,-809.0,0.00012314,2]
[326905583,1715554233014,-612.0,0.00012314,2]
[326905584,1715554233025,-238.0,0.00012314,2]
[326905585,1715554233034,-299.259,0.00012314,2]
[326905586,1715554233044,-244.268,0.00012314,2]
[326905587,1715554233054,-1646.0,0.00012314,2]
[326905588,1715554233063,-204.593,0.00012314,2]
[326905589,1715554233073,-2433.0,0.00012314,2]
[326905590,1715554233083,-1138.0,0.00012314,2]
[326905591,1715554233093,-444.0,0.00012314,2]
[326905592,1715554233103,-223.0,0.00012314,2]
[326905593,1715554233490,-3156.0,0.00012314,2]
[326905594,1715554233512,-1463.0,0.00012314,2]
[326905595,1715554233532,-5749.0,0.00012314,2]
[326905596,1715554233545,-150.0,0.00012314,2]
[326905597,1715554233555,-150.0,0.00012314,2]
[326905598,1715554233565,-150.0,0.00012314,2]
[326905599,1715554233573,-288.0,0.00012314,2]
[326905600,1715554233587,-37831.0,0.00012314,2]
[326905601,1715554233597,-160.68292263,0.00012317,2]
[326905602,1715554233606,-2033.0867348,0.00012321,2]
[326905603,1715554233614,-2441.2855519,0.00012321,2]
[326905604,1715554233623,-508.7305117,0.00012321,2]
[326905605,1715554233633,-1439.5957684,0.00012321,2]
[326905606,1715554233645,-1036.6334633,0.00012321,2]
[326905607,1715554233654,-1212.7569798,0.00012326,2]
[326905608,1715554233664,-1000.0,0.00012326,2]
[326905609,1715554233674,-3779.94856419,0.00012326,2]
[326905610,1715554233683,-373.97275012,0.00012326,2]
[326905611,1715554233693,-2397.21015954,0.00012326,2]
[326905612,1715554233702,-155.0,0.00012326,2]
[326905613,1715554233711,-159.03909377,0.00012326,2]
[326905614,1715554233721,-3077.0200038,0.00012326,2]
[326905615,1715554233730,-206.344491,0.00012326,2]
[326905616,1715554233739,-155.0,0.00012327,2]
[326905617,1715554233748,-377.52818815,0.00012327,2]
[326905618,1715554233757,-254695.24144359,0.00012327,2]
[326905619,1715554233766,-744.0,0.00012327,2]
[326905620,1715554233775,-267388.34802599,0.00012328,2]
[326905621,1715554233785,-165.0,0.00012328,2]
[326905622,1715554233794,-405.75658118,0.00012328,2]
[326905623,1715554233803,-225.59093,0.00012328,2]
[326905624,1715554233811,-151.0,0.00012328,2]
[326905625,1715554233820,-151.0,0.00012328,2]
[326905626,1715554233829,-151.0,0.00012328,2]
[326905627,1715554233838,-151.0,0.00012328,2]
[326905628,1715554233847,-604.31735166,0.00012328,2]
[326905629,1715554233857,-151.0,0.00012328,2]
[326905630,1715554233866,-151.0,0.00012328,2]
[326905631,1715554233875,-151.0,0.00012328,2]
[326905632,1715554233884,-151.0,0.00012328,2]
[326905633,1715554233893,-151.0,0.00012328,2]
[326905634,1715554233902,-151.0,0.00012328,2]
[326905635,1715554233911,-151.0,0.00012328,2]
[326905636,1715554233920,-151.0,0.00012328,2]
[326905637,1715554233928,-151.0,0.00012328,2]
[326905638,1715554233938,-151.0,0.00012328,2]
[326905639,1715554233946,-185.193543,0.00012328,2]
[326905640,1715554233956,-151.0,0.00012328,2]
[326905641,1715554233965,-151.0,0.00012328,2]
[326905642,1715554233974,-151.0,0.00012328,2]
[326905643,1715554233983,-151.0,0.00012328,2]
[326905644,1715554233993,-151.0,0.00012328,2]
[326905645,1715554234002,-151.0,0.00012328,2]
[326905646,1715554234011,-151.0,0.00012328,2]
[326905647,1715554234020,-151.0,0.00012328,2]
[326905648,1715554234029,-151.0,0.00012328,2]
[326905649,1715554234039,-151.0,0.00012328,2]
[326905650,1715554234047,-151.0,0.00012328,2]
[326905651,1715554234056,-151.0,0.00012328,2]
[326905652,1715554234065,-151.0,0.00012328,2]
[326905653,1715554234074,-151.0,0.00012328,2]
[326905654,1715554234083,-1124.32,0.00012328,2]
[326905655,1715554234092,-1124.32,0.00012328,2]
[326905656,1715554234101,-1124.32,0.00012328,2]
[326905657,1715554234110,-1124.32,0.00012328,2]
[326905658,1715554234119,-1124.32,0.00012328,2]
[326905659,1715554234128,-1124.32,0.00012328,2]
[326905660,1715554234137,-1124.32,0.00012328,2]
[326905661,1715554234146,-1124.32,0.00012328,2]
[326905662,1715554234155,-1124.32,0.00012328,2]
[326905663,1715554234164,-1124.32,0.00012328,2]
[326905664,1715554234173,-1124.32,0.00012328,2]
[326905665,1715554234182,-1124.32,0.00012328,2]
[326905666,1715554234192,-1124.32,0.00012328,2]
[326905667,1715554234201,-1124.32,0.00012328,2]
[326905668,1715554234210,-1124.32,0.00012328,2]
[326905669,1715554234219,-1124.32,0.00012328,2]
[326905670,1715554234229,-1124.32,0.00012328,2]
[326905671,1715554234238,-1124.32,0.00012328,2]
[326905672,1715554234248,-1124.32,0.00012328,2]
[326905673,1715554234257,-1124.32,0.00012328,2]
[326905674,1715554234266,-1124.32,0.00012328,2]
[326905675,1715554234275,-1124.32,0.00012328,2]
[326905676,1715554234285,-1124.32,0.00012328,2]
[326905677,1715554234294,-1124.34672455,0.00012328,2]
[326905678,1715554234303,-151.0,0.00012328,2]
[326905679,1715554234313,-1581.233568,0.00012328,2]
[326905680,1715554234322,-1581.233568,0.00012328,2]
[326905681,1715554234331,-1581.233568,0.00012328,2]
[326905682,1715554234340,-1581.233568,0.00012328,2]
[326905683,1715554234350,-1581.233568,0.00012328,2]
[326905684,1715554234359,-1581.233568,0.00012328,2]
[326905685,1715554234368,-1581.233568,0.00012328,2]
[326905686,1715554234377,-1417.64,0.00012328,2]
[326905687,1715554234388,-1417.64,0.00012328,2]
[326905688,1715554234397,-1417.64,0.00012328,2]
[326905689,1715554234406,-1417.64,0.00012328,2]
[326905690,1715554234415,-1417.64,0.00012328,2]
[326905691,1715554234424,-1417.64,0.00012328,2]
[326905692,1715554234434,-1417.64,0.00012328,2]
[326905693,1715554234443,-1417.64,0.00012328,2]
[326905694,1715554234452,-1417.64,0.00012328,2]
[326905695,1715554234461,-1417.64,0.00012328,2]
[326905696,1715554234470,-1417.64,0.00012328,2]
[326905697,1715554234480,-1417.64,0.00012328,2]
[326905698,1715554234489,-1417.64,0.00012328,2]
[326905699,1715554234501,-1417.64,0.00012328,2]
[326905700,1715554234510,-1417.64,0.00012328,2]
[326905701,1715554234519,-1417.64,0.00012328,2]
[326905702,1715554234528,-1417.64,0.00012328,2]
[326905703,1715554234537,-1417.64,0.00012328,2]
[326905704,1715554234546,-1417.64,0.00012328,2]
[326905705,1715554234555,-1417.64,0.00012328,2]
[326905706,1715554234564,-1417.64,0.00012328,2]
[326905707,1715554234573,-1417.64,0.00012328,2]
[326905708,1715554234582,-1417.64,0.00012328,2]
[326905709,1715554234592,-1417.65659634,0.00012328,2]
[326905710,1715554234601,-500.0,0.00012328,2]
[326905711,1715554234610,-500.0,0.00012328,2]
[326905712,1715554234619,-500.0,0.00012328,2]
[326905713,1715554234628,-500.0,0.00012328,2]
[326905714,1715554234637,-500.0,0.00012328,2]
[326905715,1715554234646,-500.0,0.00012328,2]
[326905716,1715554234655,-500.0,0.00012328,2]
[326905717,1715554234666,-500.0,0.00012328,2]
[326905718,1715554234677,-500.0,0.00012328,2]
[326905719,1715554234686,-500.0,0.00012328,2]
[326905720,1715554234696,-500.0,0.00012328,2]
[326905721,1715554234708,-500.0,0.00012328,2]
[326905722,1715554234717,-500.0,0.00012328,2]
[326905723,1715554234727,-500.0,0.00012328,2]
[326905724,1715554234736,-500.0,0.00012328,2]
[326905725,1715554234746,-500.0,0.00012328,2]
[326905726,1715554234754,-500.0,0.00012328,2]
[326905727,1715554234764,-500.0,0.00012328,2]
[326905728,1715554234773,-500.0,0.00012328,2]
[326905729,1715554234783,-156.36648287,0.00012328,2]
[326905730,1715554234792,-500.0,0.00012328,2]
[326905731,1715554234801,-297.48351358,0.00012328,2]
[326905732,1715554234810,-500.0,0.00012328,2]
[326905733,1715554234819,-500.0,0.00012328,2]
[326905734,1715554234829,-500.0,0.00012328,2]
[326905735,1715554234838,-500.0,0.00012328,2]
[326905736,1715554234847,-500.0,0.00012328,2]
[326905737,1715554234857,-500.0,0.00012328,2]
[326905738,1715554234866,-500.0,0.00012328,2]
[326905739,1715554234875,-500.0,0.00012328,2]
[326905740,1715554234885,-500.0,0.00012328,2]
[326905741,1715554234894,-500.0,0.00012328,2]
[326905742,1715554234904,-500.0,0.00012328,2]
[326905743,1715554234913,-500.0,0.00012328,2]
[326905744,1715554234922,-500.0,0.00012328,2]
[326905745,1715554234932,-559.61780663,0.00012328,2]
[326905746,1715554234941,-500.0,0.00012328,2]
[326905747,1715554234950,-500.0,0.00012328,2]
[326905748,1715554234960,-500.0,0.00012328,2]
[326905749,1715554234969,-5392.08,0.00012328,2]
[326905750,1715554234978,-500.0,0.00012328,2]
[326905751,1715554234987,-5392.08,0.00012328,2]
[326905752,1715554234997,-500.0,0.00012328,2]
[326905753,1715554235007,-5392.08,0.00012328,2]
[326905754,1715554235016,-500.0,0.00012328,2]
[326905755,1715554235026,-5392.08,0.00012328,2]
[326905756,1715554235035,-5392.08,0.00012328,2]
[326905757,1715554235045,-3523.22,0.00012328,2]
[326905758,1715554235054,-5392.08,0.00012328,2]
[326905759,1715554235064,-3523.22,0.00012328,2]
[326905760,1715554235074,-3523.22,0.00012328,2]
[326905761,1715554235084,-5392.08,0.00012328,2]
[326905762,1715554235094,-3523.22,0.00012328,2]
[326905763,1715554235104,-5392.08,0.00012328,2]
[326905764,1715554235113,-3523.22,0.00012328,2]
[326905765,1715554235123,-5392.08,0.00012328,2]
[326905766,1715554235133,-672.93621913,0.00012328,2]
[326905767,1715554235164,-2850.28378087,0.00012328,2]
[326905768,1715554235174,-5392.08,0.00012328,2]
[326905769,1715554235184,-1476.0,0.00012328,2]
[326905770,1715554235193,-3523.22,0.00012328,2]
[326905771,1715554235203,-5392.08,0.00012328,2]
[326905772,1715554235213,-1476.0,0.00012328,2]
[326905773,1715554235222,-3523.22,0.00012328,2]
[326905774,1715554235232,-5392.08,0.00012328,2]
[326905775,1715554235241,-1476.0,0.00012328,2]
[326905776,1715554235251,-920.00300021,0.00012328,2]
[326905777,1715554235263,-2603.21699979,0.00012328,2]
[326905778,1715554235273,-5392.08,0.00012328,2]
[326905779,1715554235283,-1476.0,0.00012328,2]
[326905780,1715554235292,-5392.08,0.00012328,2]
[326905781,1715554235301,-1476.0,0.00012328,2]
[326905782,1715554235311,-5245.57982355,0.00012328,2]
[326905783,1715554235323,-146.50017645,0.00012328,2]
[326905784,1715554235333,-3523.22,0.00012328,2]
[326905785,1715554235342,-1476.0,0.00012328,2]
[326905786,1715554235352,-3523.22,0.00012328,2]
[326905787,1715554235362,-5392.08,0.00012328,2]
[326905788,1715554235371,-1476.0,0.00012328,2]
[326905789,1715554235381,-3523.22,0.00012328,2]
[326905790,1715554235391,-5392.08,0.00012328,2]
[326905791,1715554235400,-1476.0,0.00012328,2]
[326905792,1715554235410,-3523.22,0.00012328,2]
[326905793,1715554235419,-5392.08,0.00012328,2]
[326905794,1715554235429,-1476.0,0.00012328,2]
[326905795,1715554235438,-5392.08,0.00012328,2]
[326905796,1715554235448,-1476.0,0.00012328,2]
[326905797,1715554235459,-5392.08,0.00012328,2]
[326905798,1715554235469,-1464.48290412,0.00012328,2]
[326905799,1715554235483,-293.26397614,0.00012328,2]
[326905800,1715554235495,-650.23905597,0.00012328,2]
[326905801,1715554235511,-1115.23406377,0.00012328,2]
[326905802,1715554235520,-1027.25021662,0.00012328,2]
[326905803,1715554235532,-448.74978338,0.00012328,2]
[326905804,1715554235542,-551.25021662,0.00012328,2]
[326905805,1715554235554,-854.70609405,0.00012328,2]
[326905806,1715554235565,-2040.41244433,0.00012328,2]
[326905807,1715554235577,-1945.711245,0.00012328,2]
[326905808,1715554235587,-2056.47954721,0.00012328,2]
[326905809,1715554235598,-1466.74045279,0.00012328,2]
[326905810,1715554235608,-5392.08,0.00012328,2]
[326905811,1715554235617,-3523.22,0.00012328,2]
[326905812,1715554235627,-3523.22,0.00012328,2]
[326905813,1715554235637,-5392.08,0.00012328,2]
[326905814,1715554235648,-3523.22,0.00012328,2]
[326905815,1715554235659,-5392.20710906,0.00012328,2]
[326905816,1715554235668,-2789.4,0.00012328,2]
[326905817,1715554235678,-3523.22,0.00012328,2]
[326905818,1715554235688,-2789.4,0.00012328,2]
[326905819,1715554235698,-3523.22,0.00012328,2]
[326905820,1715554235708,-2789.4,0.00012328,2]
[326905821,1715554235718,-3523.22,0.00012328,2]
[326905822,1715554235728,-2789.4,0.00012328,2]
[326905823,1715554235738,-3523.22,0.00012328,2]
[326905824,1715554235750,-2789.4,0.00012328,2]
[326905825,1715554235760,-3523.22,0.00012328,2]
[326905826,1715554235769,-2789.4,0.00012328,2]
[326905827,1715554235779,-1476.0,0.00012328,2]
[326905828,1715554235788,-3523.4061534,0.00012328,2]
[326905829,1715554235799,-1476.0,0.00012328,2]
[326905830,1715554235808,-2789.4,0.00012328,2]
[326905831,1715554235818,-1476.0,0.00012328,2]
[326905832,1715554235828,-2789.4,0.00012328,2]
[326905833,1715554235837,-2789.4,0.00012328,2]
[326905834,1715554235847,-1476.0,0.00012328,2]
[326905835,1715554235857,-2789.4,0.00012328,2]
[326905836,1715554235867,-1476.0,0.00012328,2]
[326905837,1715554235877,-1476.0,0.00012328,2]
[326905838,1715554235886,-2789.4,0.00012328,2]
[326905839,1715554235896,-1476.0,0.00012328,2]
[326905840,1715554235906,-3179.38,0.00012328,2]
[326905841,1715554235916,-2789.4,0.00012328,2]
[326905842,1715554235926,-1476.0,0.00012328,2]
[326905843,1715554235935,-3179.38,0.00012328,2]
[326905844,1715554235945,-2789.4,0.00012328,2]
[326905845,1715554235955,-3179.38,0.00012328,2]
[326905846,1715554235965,-2789.4,0.00012328,2]
[326905847,1715554235974,-1476.0,0.00012328,2]
[326905848,1715554235984,-1476.0,0.00012328,2]
[326905849,1715554235993,-3179.38,0.00012328,2]
[326905850,1715554236004,-2789.4,0.00012328,2]
[326905851,1715554236014,-3179.38,0.00012328,2]
[326905852,1715554236023,-2789.4,0.00012328,2]
[326905853,1715554236033,-1476.0,0.00012328,2]
[326905854,1715554236042,-3179.38,0.00012328,2]
[326905855,1715554236052,-2789.4,0.00012328,2]
[326905856,1715554236062,-1476.0,0.00012328,2]
[326905857,1715554236072,-2789.4,0.00012328,2]
[326905858,1715554236081,-3179.38,0.00012328,2]
[326905859,1715554236092,-1476.01002233,0.00012328,2]
[326905860,1715554236101,-2789.4,0.00012328,2]
[326905861,1715554236111,-3179.38,0.00012328,2]
[326905862,1715554236120,-2789.4,0.00012328,2]
[326905863,1715554236130,-3179.38,0.00012328,2]
[326905864,1715554236140,-3179.38,0.00012328,2]
[326905865,1715554236149,-2789.4,0.00012328,2]
[326905866,1715554236159,-3179.38,0.00012328,2]
[326905867,1715554236168,-2789.4,0.00012328,2]
[326905868,1715554236178,-2041.07013157,0.00012328,2]
[326905869,1715554236197,-748.32986843,0.00012328,2]
[326905870,1715554236206,-156.63545574,0.00012328,2]
[326905871,1715554236218,-357.46371413,0.00012328,2]
[326905872,1715554236230,-860.35582076,0.00012328,2]
[326905873,1715554236242,-1804.92500937,0.00012328,2]
[326905874,1715554236253,-1844.78411915,0.00012328,2]